fUST/lending_fUST_20260428
["ID","MTS","AMOUNT","RATE_DAILY","PERIOD"]
[421287433,1777344643517,-225.504,0.00017023,2]
[421287434,1777344643526,-225.504,0.00017023,2]
[421287435,1777344643535,-225.504,0.00017023,2]
[421287436,1777344643544,-527.44672078,0.00017101,2]
[421287437,1777344643554,-1122.73442362,0.00017351,2]
[421287438,1777344643563,-204.0,0.00017528,2]
[421287439,1777344643572,-300.45197993,0.00017561,2]
[421287440,1777344643582,-445.202766,0.00017561,2]
[421287441,1777344643591,-537.6845,0.00017561,2]
[421287442,1777344643600,-537.6845,0.00017561,2]
[421287443,1777344643610,-1957.856,0.00017561,2]
[421287444,1777344643619,-175.07177161,0.00017561,2]
[421287445,1777344643628,-2150.738,0.00017561,2]
[421287446,1777344643637,-5100.2498291,0.00017589,2]
[421287447,1777344643646,-5000.0,0.00017589,2]
[421287448,1777344643655,-557.5788265,0.00017616,2]
[421287449,1777344643664,-2030.296672,0.00017616,2]
[421287450,1777344643673,-578.20924308,0.00017671,2]
[421287451,1777344643682,-2105.41764886,0.00017671,2]
[421287452,1777344643692,-292.42579329,0.0001772,2]
[421287453,1777344643701,-599.60298507,0.00017726,2]
[421287454,1777344643710,-2183.31810187,0.00017726,2]
[421287455,1777344643719,-151.0,0.00017746,2]
[421287456,1777344643728,-327.1754338,0.00017746,2]
[421287457,1777344643737,-439.3027964,0.00017746,2]
[421287458,1777344643747,-151.0,0.00017752,2]
[421287459,1777344643756,-621.78829552,0.00017781,2]
[421287460,1777344643765,-2264.10087164,0.00017781,2]
[421287461,1777344643774,-241.0,0.00017825,2]
[421287462,1777344643784,-420.0,0.00017834,2]
[421287463,1777344643793,-644.79446246,0.00017836,2]
[421287464,1777344643802,-2347.87260389,0.00017836,2]
[421287465,1777344643811,-668.65185757,0.00017891,2]
[421287466,1777344643820,-2434.74389024,0.00017891,2]
[421287467,1777344643829,-693.3919763,0.00017946,2]
[421287468,1777344643838,-2524.82941417,0.00017946,2]
[421287469,1777344643848,-1122.73442362,0.00017975,2]
[421287470,1777344643857,-719.04747942,0.00018001,2]
[421287471,1777344643867,-195.92428268,0.00018001,2]
[421287472,1777344643876,-1479039.46103839,0.00018032,2]
[421287473,1777344644139,-1509.5865512,0.00018032,2]
[421287474,1777344644175,-3771.27036072,0.00018032,2]
[421287497,1777344649378,-251.14791539,0.00016769,2]
[421287498,1777344649388,-516.20373048,0.00018032,2]
[421287499,1777344649433,-6439.79107111,0.00018032,2]
[421287501,1777344649699,-3168.06837756,0.00018032,2]
[421287509,1777345533193,39850.37903514,0.00011,30]
[421287510,1777345756130,-1200.0,9.424e-05,2]
[421287511,1777345756150,-552.0,9.424e-05,2]
[421287512,1777345756172,-150.0,9.425e-05,2]
[421287513,1777345756191,-4293.51238063,9.425e-05,2]
[421287552,1777345832766,-24.39211808,9.425e-05,2]
[421287553,1777345832776,-552.0,9.425e-05,2]
[421287554,1777345832786,-150.0,0.00010425,2]
[421287555,1777345832795,-177.0,0.00012425,2]
[421287556,1777345832805,-2708.57622737,0.00013,2]
[421287665,1777345843983,-4574.54002734,0.00013,2]
[421287666,1777345843992,-300.0,0.00013258,2]
[421287667,1777345844002,-300.0,0.00013258,2]
[421287668,1777345844012,-300.0,0.00013259,2]
[421287669,1777345844022,-300.0,0.00013259,2]
[421287670,1777345844033,-300.0,0.00013259,2]
[421287671,1777345844043,-300.0,0.00013259,2]
[421287672,1777345844053,-300.0,0.00013259,2]
[421287673,1777345844062,-300.0,0.00013259,2]
[421287674,1777345844072,-300.0,0.00013259,2]
[421287675,1777345844081,-300.0,0.00013259,2]
[421287676,1777345844091,-300.0,0.00013259,2]
[421287677,1777345844101,-300.0,0.00013259,2]
[421287678,1777345844111,-300.0,0.00013259,2]
[421287679,1777345844120,-300.0,0.00013259,2]
[421287680,1777345844129,-300.0,0.00013259,2]
[421287681,1777345844139,-300.0,0.00013259,2]
[421287682,1777345844148,-300.0,0.00013259,2]
[421287683,1777345844157,-600.0,0.00013523,2]
[421287684,1777345844167,-156.0,0.00013699,2]
[421287685,1777345844176,-1000.0,0.00013699,2]
[421287686,1777345844185,-1919.23771407,0.00013809,2]
[421287687,1777345844194,-1410.55457369,0.00013809,2]
[421287688,1777345844204,-3767.80627026,0.00013909,2]
[421287689,1777345844214,-2765.36678702,0.00013909,2]
[421287690,1777345844223,-500.0,0.00014008,2]
[421287691,1777345844234,-3786.54722198,0.00014009,2]
[421287692,1777345844243,-2885.26350533,0.00014009,2]
[421287693,1777345844254,-4073.48151563,0.00014109,2]
[421287694,1777345844264,-3106.47919175,0.00014109,2]
[421287695,1777345844273,-247.81613857,0.00014208,2]
[421287696,1777345844284,-4379.15676114,0.00014209,2]
[421287697,1777345844294,-3327.69487827,0.00014209,2]
[421287698,1777345844305,-500.0,0.00014307,2]
[421287699,1777345844315,-500.0,0.00014307,2]
[421287700,1777345844324,-500.0,0.00014307,2]
[421287701,1777345844334,-500.0,0.00014307,2]
[421287702,1777345844343,-241.53088181,0.00014307,2]
[421287703,1777345844352,-500.0,0.00014307,2]
[421287704,1777345844362,-500.0,0.00014307,2]
[421287706,1777345844371,-500.0,0.00014307,2]
[421287708,1777345844380,-500.0,0.00014307,2]
[421287709,1777345844390,-523.27686509,0.00014307,2]
[421287710,1777345844399,-202.170118,0.00014307,2]
[421287711,1777345844409,-625.40643432,0.00014307,2]
[421287712,1777345844418,-500.0,0.00014307,2]
[421287713,1777345844429,-500.0,0.00014307,2]
[421287714,1777345844439,-500.0,0.00014307,2]
[421287715,1777345844449,-500.0,0.00014307,2]
[421287716,1777345844459,-500.0,0.00014307,2]
[421287717,1777345844468,-500.0,0.00014307,2]
[421287718,1777345844478,-585.63443389,0.00014307,2]
[421287719,1777345844488,-427.04538703,0.00014307,2]
[421287720,1777345844497,-500.0,0.00014307,2]
[421287721,1777345844506,-566.82823102,0.00014307,2]
[421287722,1777345844516,-500.0,0.00014307,2]
[421287723,1777345844525,-500.0,0.00014307,2]
[421287724,1777345844535,-500.0,0.00014307,2]
[421287725,1777345844545,-500.0,0.00014307,2]
[421287726,1777345844555,-500.0,0.00014307,2]
[421287727,1777345844565,-500.0,0.00014307,2]
[421287728,1777345844575,-500.0,0.00014307,2]
[421287729,1777345844584,-500.0,0.00014307,2]
[421287730,1777345844594,-500.0,0.00014307,2]
[421287731,1777345844603,-500.0,0.00014307,2]
[421287732,1777345844613,-500.0,0.00014307,2]
[421287733,1777345844622,-500.0,0.00014307,2]
[421287734,1777345844631,-500.0,0.00014307,2]
[421287735,1777345844641,-500.0,0.00014307,2]
[421287736,1777345844650,-500.0,0.00014307,2]
[421287737,1777345844660,-500.0,0.00014307,2]
[421287738,1777345844670,-500.0,0.00014307,2]
[421287739,1777345844680,-500.0,0.00014307,2]
[421287740,1777345844689,-500.0,0.00014307,2]
[421287741,1777345844699,-500.0,0.00014307,2]
[421287742,1777345844708,-500.0,0.00014307,2]
[421287743,1777345844718,-500.0,0.00014307,2]
[421287744,1777345844727,-500.0,0.00014307,2]
[421287745,1777345844737,-500.0,0.00014307,2]
[421287746,1777345844747,-500.0,0.00014307,2]
[421287747,1777345844758,-500.0,0.00014307,2]
[421287748,1777345844768,-500.0,0.00014307,2]
[421287749,1777345844778,-4684.83200665,0.00014309,2]
[421287750,1777345844787,-3548.9105648,0.00014309,2]
[421287751,1777345844797,-4990.62288778,0.00014409,2]
[421287752,1777345844807,-3770.21273308,0.00014409,2]
[421287753,1777345844816,-204.0,0.00014425,2]
[421287754,1777345844827,-5296.30543561,0.00014509,2]
[421287755,1777345844836,-3991.43370426,0.00014509,2]
[421287756,1777345844845,-420.0,0.00014536,2]
[421287757,1777345844855,-5653.8567299,0.00014609,2]
[421287758,1777345844864,-4120.17900035,0.00014609,2]
[421287759,1777345844874,-5831.9929624,0.00014709,2]
[421287760,1777345844887,-4379.95654644,0.00014709,2]
[421287761,1777345844896,-7057.69542608,0.00014809,2]
[421287762,1777345844906,-1291.57924165,0.00014809,2]
[421287763,1777345844915,-720.0,0.00014875,2]
[421287764,1777345844925,-729.15577423,0.00014908,2]
[421287765,1777345844934,-515.07036104,0.00014908,2]
[421287766,1777345844943,-729.15577423,0.00014908,2]
[421287767,1777345844952,-729.15577423,0.00014908,2]
[421287768,1777345844961,-729.15577423,0.00014908,2]
[421287769,1777345844971,-403.75610266,0.00014908,2]
[421287770,1777345844980,-729.15577423,0.00014908,2]
[421287771,1777345844989,-729.15577423,0.00014908,2]
[421287772,1777345844998,-729.15577423,0.00014908,2]
[421287773,1777345845007,-729.15577423,0.00014908,2]
[421287774,1777345845016,-729.15577423,0.00014908,2]
[421287775,1777345845027,-729.15577423,0.00014908,2]
[421287776,1777345845036,-729.15577423,0.00014908,2]
[421287777,1777345845046,-729.15577423,0.00014908,2]
[421287778,1777345845055,-729.15577423,0.00014908,2]
[421287779,1777345845064,-729.15577423,0.00014908,2]
[421287780,1777345845073,-729.15577423,0.00014908,2]
[421287781,1777345845082,-729.15577423,0.00014908,2]
[421287782,1777345845092,-729.15577423,0.00014908,2]
[421287783,1777345845101,-729.15577423,0.00014908,2]
[421287784,1777345845110,-729.15577423,0.00014908,2]
[421287785,1777345845119,-729.15577423,0.00014908,2]
[421287786,1777345845129,-729.15577423,0.00014908,2]
[421287787,1777345845138,-729.15577423,0.00014908,2]
[421287788,1777345845148,-729.15577423,0.00014908,2]
[421287789,1777345845158,-2901.74039809,0.00014909,2]
[421287790,1777345845172,-4619.42583972,0.00014909,2]
[421287791,1777345845181,-5474.99121368,0.00014909,2]
[421287792,1777345845191,-8283.39788976,0.00015009,2]
[421287793,1777345845200,-6160.81345675,0.00015009,2]
[421287794,1777345845210,-2734.17919305,0.00015109,2]
[421287795,1777345845233,-6654.29655267,0.00015109,2]
[421287796,1777345845242,-6829.80342701,0.00015109,2]
[421287797,1777345845252,-9509.33376163,0.00015209,2]
[421287798,1777345845262,-6370.302257,0.00015209,2]
[421287799,1777345845274,-288.07357235,0.00015209,2]
[421287800,1777345845295,-393.0381938,0.00015209,2]
[421287801,1777345845304,-1081.78801202,0.00015209,2]
[421287802,1777345847317,-209.79122963,0.00015209,2]
[421287803,1777345847327,-10735.06679332,0.00015309,2]
[421287804,1777345847337,-7941.86468485,0.00015309,2]
[421287805,1777345847346,-11077.94889251,0.00015409,2]
[421287806,1777345847355,-8055.95775835,0.00015409,2]
[421287807,1777345847364,-2712.90878079,0.00015509,2]
[421287812,1777346959306,-436.48571509,0.00010302,2]
[421287813,1777346959327,-158.39023654,0.00010302,2]
[421287816,1777347032628,-150.0,0.00010459,2]
[421287818,1777347032640,-567.0,0.00010459,2]
[421287819,1777347032649,-281.59,0.0001052,13]
[421287821,1777347032659,-620.78758702,0.00012,2]
[421287823,1777347032669,-177.0,0.00012459,2]
[421287825,1777347032678,-620.03937935,0.000126,2]
[421287827,1777347032687,-1000.0,0.00013699,2]
[421287829,1777347032696,-204.0,0.00014459,2]
[421287830,1777347032706,-160.0,0.00014688,3]
[421287832,1777347032715,-168.25,0.00014852,2]
[421287834,1777347032724,-353.0,0.00014898,2]
[421287836,1777347032733,-2453.33303363,0.00014899,2]
[421287838,1777347032745,-3711.6381204,0.00014899,2]
[421287840,1777347032756,-300.0,0.00014979,2]
[421287842,1777347032768,-4218.0837986,0.00014981,2]
[421287843,1777347032780,-500.0,0.00014998,2]
[421287845,1777347032792,-52.37186542,0.00014998,2]
[421287847,1777347032821,-447.62813458,0.00014998,2]
[421287849,1777347032831,-500.0,0.00014998,2]
[421287851,1777347032843,-396.12192952,0.00014998,2]
[421287852,1777347032856,-103.87807048,0.00014998,2]
[421287853,1777347032869,-647.99026428,0.00014998,2]
[421287854,1777347032880,-411.33910317,0.00014998,2]
[421287861,1777347039052,-88.66089683,0.00014998,2]
[421287862,1777347039063,-500.0,0.00014998,2]
[421287863,1777347039073,-500.0,0.00014998,2]
[421287864,1777347039083,-500.0,0.00014998,2]
[421287865,1777347039093,-337.15613873,0.00014998,2]
[421287866,1777347039105,-162.84386127,0.00014998,2]
[421287867,1777347039116,-139.22969308,0.00014998,2]
[421287927,1777348231804,-987.8868308,0.00012216,2]
[421287929,1777348231814,-592.0,0.00012216,2]
[421287931,1777348231823,-828.28707102,0.00012339,2]
[421287934,1777348231858,-1660.37586415,0.00012339,2]
[421287935,1777348231868,-500.0,0.00012565,2]
[421287936,1777348231877,-150.0,0.00012565,2]
[421287937,1777348231886,-1200.0,0.00013225,2]
[421287938,1777348231895,-500.0,0.00013226,2]
[421287939,1777348231904,-362.09780213,0.00013233,14]
[421287940,1777348231913,-300.0,0.00013268,2]
[421287941,1777348231923,-300.0,0.00013268,2]
[421287942,1777348231932,-300.0,0.00013268,2]
[421287943,1777348231941,-300.0,0.00013268,2]
[421287944,1777348231950,-2290.50401044,0.00013269,2]
[421287945,1777348231959,-4808.60158628,0.00013369,2]
[421287946,1777348231969,-179.96,0.00013371,2]
[421287947,1777348231978,-5349.01176107,0.00013469,2]
[421287948,1777348231987,-358.48107619,0.00013535,2]
[421287965,1777348238248,-5392.21700112,0.00013535,2]
[421287990,1777348243096,-580.5737038,0.00013535,2]
[421287991,1777348243106,-5072.02658731,0.00013569,2]
[421287994,1777348633498,-500.0,0.00012565,2]
[421287995,1777348633522,-150.0,0.00012565,2]
[421287996,1777348633544,-224.9963719,0.00012907,2]
[421287997,1777348642739,-225.67,0.00013061,2]
[421287998,1777348642763,-605.0,0.00013061,2]
[421287999,1777348662220,-500.0,0.00013226,2]
[421288000,1777348662243,-150.0,0.00013299,2]
[421288001,1777348662265,-338.51,0.00013371,2]
[421288002,1777348662287,-192.64,0.00013371,2]
[421288003,1777348662314,-152.0,0.00013525,7]
[421288004,1777348662338,-528.6491238,0.00013569,2]
[421288005,1777348662361,-1200.0,0.00013634,2]
[421288006,1777348662383,-232.5345043,0.00013634,2]
[421288007,1777348678565,-67.4654957,0.00013634,2]
[421288008,1777348678589,-300.0,0.00013635,2]
[421288009,1777348678612,-300.0,0.00013635,2]
[421288010,1777348678873,-300.0,0.00013635,2]
[421288011,1777348678898,-300.0,0.00013635,2]
[421288012,1777348678922,-300.0,0.00013635,2]
[421288013,1777348678945,-300.0,0.00013635,2]
[421288014,1777348678969,-300.0,0.00013635,2]
[421288015,1777348678994,-300.0,0.00013635,2]
[421288016,1777348679018,-300.0,0.00013635,2]
[421288017,1777348679042,-300.0,0.00013635,2]
[421288018,1777348679067,-300.0,0.00013635,2]
[421288019,1777348679091,-300.0,0.00013635,2]
[421288020,1777348679115,-300.0,0.00013635,2]
[421288021,1777348679139,-300.0,0.00013635,2]
[421288022,1777348679164,-732.5345043,0.00013669,2]
[421288023,1777348684368,-460.0,0.0001363,2]
[421288024,1777348684391,-300.0,0.00013634,2]
[421288025,1777348684416,-4240.0,0.00013669,2]
[421288026,1777348690436,-916.88743166,0.00013669,2]
[421288027,1777348690457,-239.95,0.00013682,2]
[421288028,1777348690479,-451.35,0.00013682,2]
[421288029,1777348690501,-256.85,0.00013682,2]
[421288030,1777348690521,-229.913,0.00013683,2]
[421288031,1777348713714,-178.04956834,0.00013698,2]
[421288037,1777349427233,150.14319974,4.011e-05,2]
[421288050,1777349438476,-300.0,0.00012999,2]
[421288051,1777349438486,-604.0,0.00012999,2]
[421288052,1777349438495,-248.0,0.00012999,2]
[421288053,1777349438505,-300.0,0.00012999,2]
[421288054,1777349438515,-150.0,0.00012999,2]
[421288055,1777349438524,-37110.20131215,0.00013,2]
[421288117,1777349446595,-440.87684538,0.00013,2]
[421288118,1777349446644,-1679.02591707,0.00013,2]
[421288133,1777350632260,-328.06296408,0.00010317,2]
[421288134,1777350632269,-174.92009167,0.00010422,2]
[421288136,1777350632278,-566.0,0.00010422,2]
[421288138,1777350632288,-174.92009166,0.00010744,2]
[421288140,1777350632297,-150.0,0.00010744,2]
[421288142,1777350632307,-1997.46473792,0.0001083,2]
[421288156,1777350638598,-335.92470155,0.0001083,2]
[421288157,1777350638607,-635.10916192,0.0001103,2]
[421288166,1777350643450,-380.74271895,0.0001103,2]
[421288201,1777351838772,-150.0,0.0001103,2]
[421288202,1777351838783,-3621.70493784,0.0001103,2]
[421288203,1777351838792,-575.0,0.0001103,2]
[421288204,1777351838801,-300.0,0.00011129,2]
[421288205,1777351838810,-1200.0,0.00011129,2]
[421288206,1777351838820,-4986.81481076,0.0001113,2]
[421288207,1777351838830,-6117.73266214,0.0001143,2]
[421288208,1777351838839,-5000.0,0.0001143,2]
[421288209,1777351838848,-883.165248,0.0001143,2]
[421288210,1777351838858,-6941.72419795,0.0001163,2]
[421288211,1777351838867,-151.32743,0.0001163,2]
[421288212,1777351838877,-7155.21125693,0.0001173,2]
[421288213,1777351838887,-8666.58114726,0.0001183,2]
[421288214,1777351838896,-9245.89157718,0.0001193,2]
[421288215,1777351838905,-4735.824315,0.00012,2]
[421288216,1777351838914,-501.73950661,0.00012025,2]
[421288217,1777351838923,-500.0,0.00012025,2]
[421288218,1777351838932,-500.0,0.00012025,2]
[421288219,1777351838942,-500.0,0.00012025,2]
[421288220,1777351838951,-500.0,0.00012025,2]
[421288221,1777351838960,-500.0,0.00012025,2]
[421288222,1777351838970,-500.0,0.00012025,2]
[421288223,1777351838979,-500.0,0.00012025,2]
[421288224,1777351838988,-500.0,0.00012025,2]
[421288225,1777351838998,-397.1576378,0.00012025,2]
[421288226,1777351839007,-500.0,0.00012025,2]
[421288227,1777351839017,-500.0,0.00012025,2]
[421288228,1777351839027,-273.12598554,0.00012025,2]
[421288229,1777351839036,-10177.95103759,0.0001203,2]
[421288230,1777351839045,-192.98,0.00012034,2]
[421288231,1777351839055,-420.0,0.00012228,2]
[421288232,1777351839064,-11689.61117303,0.0001223,2]
[421288233,1777351839073,-231.57,0.00012301,2]
[421288234,1777351839082,-13201.0190784,0.0001233,2]
[421288235,1777351839092,-159.84104754,0.0001243,2]
[421288236,1777351839101,-157.95271657,0.0001245,7]
[421288237,1777351839110,-151.5,0.0001245,7]
[421288238,1777351839119,-151.5,0.0001245,7]
[421288239,1777351839129,-297.65179751,0.0001245,7]
[421288240,1777351839138,-301.90188113,0.0001245,7]
[421288241,1777351839147,-500.0,0.0001245,2]
[421288242,1777351839156,-1700.32370375,0.0001253,2]
[421288608,1777353047197,-4321.23067189,9.425e-05,2]
[421288609,1777353047207,-552.0,9.425e-05,2]
[421288610,1777353047217,-150.0,9.71e-05,2]
[421288611,1777353047226,-300.0,9.996e-05,2]
[421288612,1777353047235,-7551.23546788,0.0001,5]
[421288613,1777353047245,-420.0,0.00010996,2]
[421288614,1777353047254,-177.0,0.0001171,2]
[421288615,1777353047263,-455.9805711,0.00011999,2]
[421288616,1777353047272,-455.9452987,0.00011999,2]
[421288617,1777353047281,-531.5221846,0.00011999,2]
[421288618,1777353047291,-4735.824315,0.00012,2]
[421288619,1777353047300,-662.71379768,0.00012,2]
[421288620,1777353047309,-151.0,0.00012011,2]
[421288621,1777353047318,-151.0,0.00012011,2]
[421288622,1777353047327,-281.0,0.00012095,2]
[421288623,1777353047336,-152.0,0.00012117,7]
[421288624,1777353047346,-152.0,0.00012117,7]
[421288625,1777353047355,-152.0,0.00012132,7]
[421288626,1777353047364,-152.0,0.00012132,7]
[421288627,1777353047374,-152.0,0.00012132,7]
[421288628,1777353047383,-152.0,0.00012145,7]
[421288629,1777353047392,-152.0,0.00012145,7]
[421288630,1777353047402,-152.0,0.00012145,7]
[421288631,1777353047411,-13012.10328002,0.0001253,2]
[421288632,1777353047420,-225.38977988,0.0001253,2]
[421288633,1777353047430,-152.0,0.00012533,7]
[421288634,1777353047439,-270.17,0.00012568,2]
[421288635,1777353047448,-500.0,0.00012568,2]
[421288636,1777353047457,-152.0,0.00012737,7]
[421288637,1777353047467,-152.0,0.00012737,7]
[421288638,1777353047476,-152.0,0.00012737,7]
[421288639,1777353047485,-152.0,0.00012737,7]
[421288640,1777353047494,-152.0,0.00012737,7]
[421288641,1777353047503,-152.0,0.00012737,7]
[421288642,1777353047512,-152.0,0.00012737,7]
[421288643,1777353047522,-152.0,0.00012737,7]
[421288644,1777353047531,-152.0,0.00012737,7]
[421288645,1777353047540,-152.0,0.00012737,7]
[421288646,1777353047550,-152.0,0.00012737,7]
[421288647,1777353047560,-152.0,0.00012823,7]
[421288648,1777353047569,-74.59268374,0.00012823,7]
[421288649,1777353047679,-77.40731626,0.00012823,7]
[421288650,1777353047689,-152.0,0.00012823,7]
[421288651,1777353047698,-324.8830476,0.00012833,2]
[421288652,1777353047708,-455.9452987,0.00012833,2]
[421288653,1777353047717,-454.457031,0.00012833,2]
[421288654,1777353047727,-694.74,0.00012836,2]
[421288655,1777353047736,-151.0,0.00012985,2]
[421288656,1777353047745,-522.59210341,0.00013226,2]
[421288657,1777353047754,-500.0,0.00013371,2]
[421288658,1777353047764,-463.13,0.00013371,2]
[421288659,1777353047773,-941.00292994,0.000134,2]
[421288660,1777353047782,-2309.04416144,0.000134,2]
[421288661,1777353047791,-2088.89024783,0.000134,2]
[421288662,1777353047800,-2529.19807515,0.000134,2]
[421288663,1777353047809,-2297.66592427,0.000134,2]
[421288664,1777353047818,-152.0,0.00013558,7]
[421288665,1777353047827,-152.0,0.00013558,7]
[421288666,1777353047838,-617.51,0.00013682,2]
[421288667,1777353047847,-500.0,0.00013698,2]
[421288668,1777353047856,-377.79986734,0.00013698,2]
[421288726,1777354232193,-233.24,0.00012542,2]
[421288727,1777354232202,-32.4905315,0.00012542,2]
[421288728,1777354232291,-564.5094685,0.00012542,2]
[421288729,1777354232300,-150.0,0.00012615,2]
[421288730,1777354232310,-257.78548691,0.00012834,2]
[421288820,1777354240590,-53.19451309,0.00012834,2]
[421288821,1777354240599,-1200.0,0.00012899,2]
[421288822,1777354240609,-5963.34827519,0.000129,2]
[421288823,1777354240619,-699.71,0.0001293,2]
[421288824,1777354240628,-300.0,0.00012989,2]
[421288825,1777354240638,-300.0,0.00012989,2]
[421288826,1777354240647,-300.0,0.00012989,2]
[421288827,1777354240656,-300.0,0.00012989,2]
[421288828,1777354240666,-500.0,0.0001299,2]
[421288829,1777354240675,-500.0,0.0001299,2]
[421288830,1777354240684,-629.0,0.0001299,2]
[421288831,1777354240693,-500.0,0.0001299,2]
[421288832,1777354240702,-629.0,0.0001299,2]
[421288833,1777354240711,-500.0,0.0001299,2]
[421288834,1777354240720,-629.0,0.0001299,2]
[421288835,1777354240730,-500.0,0.0001299,2]
[421288836,1777354240739,-629.0,0.0001299,2]
[421288837,1777354240747,-444.78224202,0.0001299,2]
[421288838,1777354240757,-629.0,0.0001299,2]
[421288839,1777354240766,-629.0,0.0001299,2]
[421288840,1777354240775,-629.0,0.0001299,2]
[421288841,1777354240784,-629.0,0.0001299,2]
[421288842,1777354240794,-151.5,0.0001299,2]
[421288843,1777354240803,-629.0,0.0001299,2]
[421288844,1777354240812,-151.5,0.0001299,2]
[421288845,1777354240821,-629.0,0.0001299,2]
[421288846,1777354240830,-151.5,0.0001299,2]
[421288847,1777354240839,-629.0,0.0001299,2]
[421288848,1777354240848,-151.5,0.0001299,2]
[421288849,1777354240857,-629.0,0.0001299,2]
[421288850,1777354240866,-151.5,0.0001299,2]
[421288851,1777354240875,-151.87355585,0.0001299,2]
[421288852,1777354240885,-629.0,0.0001299,2]
[421288853,1777354240894,-629.0,0.0001299,2]
[421288854,1777354240903,-629.0,0.0001299,2]
[421288855,1777354240912,-150.0,0.0001299,2]
[421288856,1777354240921,-150.0,0.0001299,2]
[421288857,1777354240930,-629.0,0.0001299,2]
[421288858,1777354240939,-150.0,0.0001299,2]
[421288859,1777354240948,-151.72551572,0.0001299,2]
[421288860,1777354240957,-629.0,0.0001299,2]
[421288861,1777354240966,-629.0,0.0001299,2]
[421288862,1777354240975,-629.0,0.0001299,2]
[421288863,1777354240984,-629.0,0.0001299,2]
[421288864,1777354240993,-629.0,0.0001299,2]
[421288865,1777354241002,-629.0,0.0001299,2]
[421288866,1777354241011,-629.0,0.0001299,2]
[421288867,1777354241020,-648.38194082,0.0001299,2]
[421288868,1777354241030,-500.0,0.00012999,2]
[421288869,1777354241039,-500.0,0.00012999,2]
[421288870,1777354241048,-500.0,0.00012999,2]
[421288871,1777354241057,-624.79365297,0.00012999,2]
[421288872,1777354241066,-239.54857142,0.00012999,2]
[421288873,1777354241075,-500.0,0.00012999,2]
[421288874,1777354241084,-500.0,0.00012999,2]
[421288875,1777354241094,-500.0,0.00012999,2]
[421288876,1777354241103,-500.0,0.00012999,2]
[421288877,1777354241112,-500.0,0.00012999,2]
[421288878,1777354241122,-171.27276966,0.00012999,2]
[421288879,1777354241131,-500.0,0.00012999,2]
[421288880,1777354241140,-500.0,0.00012999,2]
[421288881,1777354241149,-500.0,0.00012999,2]
[421288882,1777354241157,-500.0,0.00012999,2]
[421288883,1777354241166,-500.0,0.00012999,2]
[421288884,1777354241175,-500.0,0.00012999,2]
[421288885,1777354241184,-500.0,0.00012999,2]
[421288886,1777354241193,-500.0,0.00012999,2]
[421288887,1777354241202,-506.45811301,0.00012999,2]
[421288888,1777354241210,-500.0,0.00012999,2]
[421288889,1777354241220,-500.0,0.00012999,2]
[421288890,1777354241230,-500.0,0.00012999,2]
[421288891,1777354241239,-219.21029266,0.00012999,2]
[421288892,1777354241248,-500.0,0.00012999,2]
[421288893,1777354241257,-500.0,0.00012999,2]
[421288894,1777354241266,-500.0,0.00012999,2]
[421288895,1777354241275,-500.0,0.00012999,2]
[421288896,1777354241284,-500.0,0.00012999,2]
[421288897,1777354241294,-500.0,0.00012999,2]
[421288898,1777354241303,-500.0,0.00012999,2]
[421288899,1777354241312,-500.0,0.00012999,2]
[421288900,1777354241321,-500.0,0.00012999,2]
[421288901,1777354241330,-500.0,0.00012999,2]
[421288902,1777354241339,-500.0,0.00012999,2]
[421288903,1777354241349,-500.0,0.00012999,2]
[421288904,1777354241359,-500.0,0.00012999,2]
[421288905,1777354241368,-500.0,0.00012999,2]